bitfinex/quotes_BTCUSD_20241208
["timestamp","ask_amount","ask_price","bid_price","bid_amount"]
[1733662494257,0.0121371,100110.0,100100.0,0.10189221]
[1733662494516,0.1919391,100110.0,100100.0,0.10189221]
[1733662495177,0.1859391,100110.0,100100.0,0.10089221]
[1733662495425,0.1889391,100110.0,100100.0,0.10089221]
[1733662495905,0.49300753,100110.0,100100.0,0.0008627]
[1733662496144,0.4827391,100110.0,100100.0,0.0008627]
[1733662496594,0.4827391,100110.0,100100.0,0.0018627]
[1733662496850,0.4827391,100110.0,100100.0,0.0008627]
[1733662497106,0.4857391,100110.0,100100.0,0.0008627]
[1733662497339,0.57527121,100110.0,100100.0,0.0008627]
[1733662497544,0.4407391,100110.0,100100.0,0.0008627]
[1733662498459,0.4407391,100110.0,100090.0,0.0017312]
[1733662498460,0.47662,100100.0,100090.0,0.0017312]
[1733662498668,0.62664951,100100.0,100090.0,0.0008685]
[1733662498893,0.73297181,100100.0,100090.0,0.0008685]
[1733662499880,0.74197181,100100.0,100090.0,0.0008685]
[1733662500106,0.73980616,100100.0,100090.0,0.0008685]
[1733662500816,0.3498,100080.0,100060.0,0.000864]
[1733662501073,0.352892,100060.0,100050.0,0.0008628]
[1733662501284,0.45292151,100060.0,100050.0,0.0008628]
[1733662501499,0.45680755,100060.0,100050.0,0.0008628]
[1733662501963,0.023,100050.0,100010.0,0.2284207]
[1733662502190,0.179949,100030.0,100020.0,0.10002951]
[1733662502657,0.1837938,100030.0,100020.0,0.10002951]
[1733662503852,0.179969,100020.0,100000.0,0.1707]
[1733662504099,0.179969,100020.0,100010.0,0.10002951]
[1733662504100,0.35995,100020.0,100010.0,0.10002951]
[1733662504372,0.179982,100010.0,100000.0,0.1207]
[1733662504596,0.180016,99991.0,99990.0,0.0157127]
[1733662504839,0.179982,100010.0,99990.0,0.0157127]
[1733662505048,0.203,100000.0,99990.0,0.0157127]
[1733662505327,0.18059027,99991.0,99990.0,0.0157127]
[1733662505747,0.29045077,99991.0,99990.0,0.0157127]
[1733662506245,0.28061978,99991.0,99990.0,0.0157127]
[1733662506485,0.28061978,99991.0,99990.0,0.0177127]
[1733662506993,0.18559027,99991.0,99990.0,0.0177127]
[1733662507212,0.00557427,99991.0,99990.0,0.0177127]
[1733662507447,0.00057427,99991.0,99990.0,0.0157127]
[1733662507897,0.18059027,99991.0,99990.0,0.0157127]
[1733662508328,0.00057427,99991.0,99990.0,0.0157127]
[1733662508776,0.2076483,99991.0,99990.0,0.0157127]
[1733662509012,0.1986483,99991.0,99990.0,0.0157127]
[1733662509266,0.2046483,99991.0,99990.0,0.0157127]
[1733662509471,0.1986483,99991.0,99990.0,0.0157127]
[1733662510108,0.2036483,99991.0,99990.0,0.0157127]
[1733662510356,0.29867781,99991.0,99990.0,0.0157127]
[1733662510654,0.18007,99961.0,99940.0,0.0009257]
[1733662510871,0.28009951,99961.0,99940.0,0.0009257]
[1733662511558,0.18007,99961.0,99940.0,0.0009257]
[1733662511771,0.32899951,99961.0,99940.0,0.0009257]
[1733662511994,0.37990536,99961.0,99940.0,0.0009257]
[1733662512205,0.32957343,99961.0,99940.0,0.0009257]
[1733662512712,0.28067343,99961.0,99940.0,0.0009257]
[1733662513389,0.28967343,99961.0,99940.0,0.0009257]
[1733662513592,0.28067343,99961.0,99940.0,0.0009257]
[1733662514013,0.28967343,99961.0,99940.0,0.0009257]
[1733662514708,0.180106,99941.0,99940.0,0.0009257]
[1733662515016,0.28013551,99941.0,99940.0,0.0009257]
[1733662515646,0.180106,99941.0,99940.0,0.0009257]
[1733662516110,0.009,99941.0,99940.0,0.0009257]
[1733662516334,0.00057392,99961.0,99940.0,0.0009257]
[1733662516566,0.00430625,99941.0,99940.0,0.0009257]
[1733662516776,0.00378576,99941.0,99940.0,0.10095521]
[1733662516993,0.00057392,99961.0,99949.0,0.180091]
[1733662517213,0.180072,99960.0,99940.0,0.10095521]
[1733662517447,0.1843921,99960.0,99947.0,0.180094]
[1733662517681,0.0043201,99960.0,99947.0,0.180094]
[1733662517914,0.0043201,99960.0,99952.0,0.180085]
[1733662518135,0.00057392,99961.0,99957.0,0.230075]
[1733662518354,0.00057392,99961.0,99960.0,0.05]
[1733662518572,0.00057392,99961.0,99960.0,0.10002951]
[1733662518818,0.00057392,99961.0,99955.0,0.180081]
[1733662519934,0.180018,99990.0,99977.0,0.180041]
[1733662520171,0.180011,99994.0,99977.0,0.180041]
[1733662520386,0.180011,99994.0,99958.0,0.00100028]
[1733662520387,0.00630028,99989.0,99971.0,0.05]
[1733662520606,0.179991,100010.0,99985.0,0.180025]
[1733662520859,0.39184579,100010.0,99987.0,0.180021]
[1733662521076,0.00632162,100000.0,99987.0,0.180021]
[1733662521524,0.359982,100010.0,99992.0,0.180013]
[1733662521787,0.179991,100010.0,99992.0,0.180013]
[1733662521999,0.32997,100020.0,99997.0,0.180004]
[1733662522250,0.00635931,100000.0,99997.0,0.180004]
[1733662522461,0.17997,100020.0,100000.0,0.179994]
[1733662522897,0.00638667,100010.0,100000.0,0.179994]
[1733662525156,0.00638667,100010.0,100000.0,0.28202351]
[1733662525608,0.359874,100040.0,100010.0,0.359936]
[1733662525609,0.35987,100040.0,100010.0,0.359936]
[1733662525819,0.52126484,100040.0,100010.0,0.359936]
[1733662526055,0.52126484,100040.0,100010.0,0.359933]
[1733662526298,0.179947,100030.0,100010.0,0.359933]
[1733662527702,0.67126484,100040.0,100020.0,0.359914]
[1733662527703,0.42996051,100040.0,100020.0,0.359914]
[1733662527921,0.023,100040.0,100020.0,0.179953]
[1733662528174,0.188939,100040.0,100010.0,0.45996951]
[1733662528375,0.179946,100030.0,100010.0,0.27999751]
[1733662528591,0.179946,100030.0,100010.0,0.45996951]
[1733662529015,0.186946,100030.0,100010.0,0.63993951]
[1733662529231,0.359876,100040.0,100010.0,0.45996851]
[1733662529443,0.366876,100040.0,100020.0,0.179964]
[1733662529674,0.186938,100040.0,100020.0,0.359928]
[1733662529891,0.179938,100040.0,100020.0,0.359928]
[1733662530356,0.181673,100040.0,100020.0,0.359928]
[1733662530785,0.361612,100040.0,100020.0,0.179964]
[1733662531219,0.003,100030.0,100020.0,0.179964]
[1733662531438,0.00644369,100030.0,100020.0,0.359917]
[1733662531703,0.00644369,100030.0,100020.0,0.360917]
[1733662532560,0.00644369,100030.0,100020.0,0.359917]
[1733662532785,0.00644369,100030.0,100020.0,0.50994651]
[1733662533448,0.00944369,100030.0,100020.0,0.50994651]
[1733662534364,0.18938969,100030.0,100020.0,0.10002951]
[1733662534569,0.00644369,100030.0,100020.0,0.179964]
[1733662535028,0.00644369,100030.0,100020.0,0.181964]
[1733662535674,0.00644369,100030.0,100020.0,0.33199351]
[1733662535887,0.00644369,100030.0,100020.0,0.40969351]
[1733662537658,0.001735,100040.0,100030.0,0.179946]
[1733662539032,0.004735,100040.0,100030.0,0.1800035]
[1733662539884,0.004735,100040.0,100030.0,0.28003301]
[1733662540442,0.004735,100040.0,100030.0,0.52523301]
[1733662540864,0.0017338,100060.0,100050.0,0.22991]
[1733662541110,0.0017338,100060.0,100050.0,0.41193951]
[1733662542464,0.0017338,100060.0,100050.0,0.41793951]
[1733662542465,0.0027338,100060.0,100050.0,0.41793951]
[1733662543994,0.0027338,100060.0,100050.0,0.56793951]
[1733662545171,0.00837399,100060.0,100050.0,0.56793951]
[1733662545400,0.0027338,100060.0,100050.0,0.56793951]
[1733662546381,0.00834844,100060.0,100050.0,0.56793951]
[1733662546614,0.00836643,100060.0,100050.0,0.56793951]
[1733662546871,0.0027338,100060.0,100050.0,0.56793951]
[1733662547116,0.00837252,100060.0,100050.0,0.56793951]
[1733662547367,0.0027338,100060.0,100050.0,0.56793951]
[1733662547572,0.00837252,100060.0,100050.0,0.56793951]
[1733662547790,0.0027338,100060.0,100050.0,0.56793951]
[1733662548041,0.00837252,100060.0,100050.0,0.56793951]
[1733662548292,0.0027338,100060.0,100050.0,0.56793951]
[1733662548509,0.00837252,100060.0,100050.0,0.56793951]
[1733662548738,0.0027338,100060.0,100050.0,0.56793951]
[1733662548980,0.0083748,100060.0,100050.0,0.56793951]
[1733662552536,0.539538,100090.0,100050.0,0.56793951]
[1733662552768,0.539538,100090.0,100070.0,0.179869]
[1733662552990,0.539538,100090.0,100070.0,0.27989851]
[1733662553234,0.258382,100070.0,100050.0,0.006]
[1733662553483,0.179892,100060.0,100050.0,0.006]
[1733662553940,0.179916,100050.0,100030.0,0.40987]
[1733662554167,0.179916,100050.0,100030.0,0.68989501]
[1733662554821,0.5414376,100060.0,100040.0,0.179928]
[1733662555051,0.179928,100040.0,100030.0,0.10008701]
[1733662555276,0.179928,100040.0,100030.0,5.75e-05]
[1733662556689,0.3615386,100060.0,100030.0,0.33002401]
[1733662556924,0.5414446,100060.0,100040.0,0.17992]
[1733662557149,0.16102919,100060.0,100030.0,0.1829935]
[1733662557372,0.179918,100050.0,100030.0,0.3629385]
[1733662557596,0.359839,100050.0,100030.0,0.3629385]
[1733662557828,0.179918,100050.0,100030.0,0.3629305]
[1733662558054,0.359837,100050.0,100030.0,0.5428755]
[1733662558292,0.359837,100050.0,100030.0,0.3629305]
[1733662558514,0.359836,100050.0,100030.0,0.3599305]
[1733662558727,0.359836,100050.0,100030.0,0.5428675]
[1733662559173,0.3615396,100060.0,100040.0,0.179928]
[1733662559413,0.18091,100050.0,100040.0,0.179928]
[1733662560088,0.17991,100050.0,100040.0,0.179928]
[1733662560324,0.18477241,100050.0,100040.0,0.179928]
[1733662561284,0.54460241,100050.0,100030.0,0.50995901]
[1733662561773,0.54460241,100050.0,100030.0,0.45995901]
[1733662562246,0.36468241,100050.0,100040.0,0.001]
[1733662562461,0.54460641,100050.0,100030.0,0.45995901]
[1733662562720,0.179928,100040.0,100030.0,0.0010575]
[1733662562966,0.179928,100040.0,100030.0,5.75e-05]
[1733662563199,0.18478862,100040.0,100030.0,5.75e-05]
[1733662565348,0.18478862,100040.0,100030.0,0.0030575]
[1733662566063,0.18478862,100040.0,100030.0,0.0039241]
[1733662567008,0.00486062,100040.0,100030.0,0.1838701]
[1733662567962,0.00486062,100040.0,100030.0,0.56449918]
[1733662568204,0.00486062,100040.0,100030.0,0.56349961]
[1733662568456,0.002,100050.0,100040.0,0.229928]
[1733662568678,0.002,100050.0,100040.0,0.32995751]
[1733662569115,0.0017346,100060.0,100040.0,0.68980451]
[1733662569338,0.0017346,100060.0,100050.0,0.17991]
[1733662570482,0.0017346,100060.0,100050.0,0.32993951]
[1733662571636,0.0017346,100060.0,100050.0,0.17991]
[1733662572121,0.1816266,100060.0,100040.0,0.179919]
[1733662572315,0.28505926,100060.0,100030.0,0.49953513]
[1733662572537,0.46496526,100060.0,100040.0,0.179928]
[1733662572759,0.6221416,100060.0,100040.0,0.179928]
[1733662573002,0.6221416,100060.0,100050.0,0.006]
[1733662573003,0.4662326,100060.0,100050.0,0.006]
[1733662573230,0.4662326,100060.0,100030.0,0.46082261]
[1733662573231,0.359831,100050.0,100030.0,0.51082261]
[1733662573466,0.179912,100050.0,100030.0,0.69075861]
[1733662574809,0.4652326,100060.0,100040.0,0.179928]
[1733662575065,0.47572204,100060.0,100040.0,0.359855]
[1733662575545,0.47371804,100060.0,100040.0,0.359855]
[1733662575754,0.65362104,100060.0,100040.0,0.359855]
[1733662575964,0.2603266,100060.0,100040.0,0.539774]
[1733662576188,0.2603266,100060.0,100040.0,0.359846]
[1733662576448,0.4422296,100060.0,100040.0,0.359846]
[1733662576706,0.4422296,100060.0,100040.0,0.359838]
[1733662577582,0.6221336,100060.0,100040.0,0.359838]
[1733662577805,0.6221326,100060.0,100040.0,0.359838]
[1733662578021,0.4422286,100060.0,100040.0,0.359838]
[1733662578232,0.4422286,100060.0,100040.0,0.539758]
[1733662578680,0.4422286,100060.0,100040.0,0.359838]
[1733662579131,0.2623266,100060.0,100040.0,0.539757]
[1733662579370,0.2623276,100060.0,100040.0,0.359838]
[1733662579604,0.2623276,100060.0,100040.0,0.539757]
[1733662580074,0.0037346,100060.0,100050.0,0.17991]
[1733662581911,0.0017346,100060.0,100050.0,0.17991]
[1733662582145,0.0037346,100060.0,100050.0,0.17991]
[1733662583844,0.0037346,100060.0,100040.0,0.179919]
[1733662583845,0.1836266,100060.0,100040.0,0.179919]
[1733662584045,0.1836266,100060.0,100030.0,0.4108001]
[1733662584046,0.17991,100050.0,100030.0,0.4108001]
[1733662584303,0.539752,100050.0,100030.0,0.28088761]
[1733662584430,0.179928,100040.0,100030.0,0.0009241]
[1733662585579,0.179928,100040.0,100030.0,0.0029241]
[1733662585778,0.179928,100040.0,100030.0,0.0009241]
[1733662586012,0.179928,100040.0,100030.0,0.1808701]
[1733662586247,0.179928,100040.0,100030.0,0.0069241]
[1733662586248,0.203928,100040.0,100030.0,0.0069241]
[1733662586429,0.2569036,100040.0,100030.0,0.0009241]
[1733662586847,0.2569036,100040.0,100030.0,0.0029241]
[1733662588599,0.3397036,100040.0,100030.0,0.0029241]
[1733662589268,0.285728,100040.0,100030.0,0.0029241]
[1733662589502,0.285728,100040.0,100030.0,0.0009241]
[1733662589738,0.29608626,100040.0,100030.0,0.0009241]
[1733662590385,0.30008626,100040.0,100030.0,0.0009241]
[1733662591621,0.29608626,100040.0,100030.0,0.0009241]
[1733662591861,0.37031816,100040.0,100030.0,0.0009241]
[1733662593175,0.002,100040.0,100030.0,0.0009241]
[1733662593407,0.002,100040.0,100030.0,0.1808701]
[1733662594359,0.002,100040.0,100030.0,0.33089961]
[1733662594800,0.18719758,100050.0,100030.0,0.69078161]
[1733662595909,0.18719758,100050.0,100030.0,0.69077261]
[1733662595910,0.36711658,100050.0,100030.0,0.69077261]
[1733662596138,0.360829,100050.0,100030.0,0.69077261]
[1733662596628,0.540753,100050.0,100030.0,0.51082561]
[1733662597066,0.202928,100040.0,100030.0,0.0009241]
[1733662599966,0.181928,100040.0,100030.0,0.0009241]
[1733662601644,0.19209948,100040.0,100030.0,0.0009241]
[1733662607059,0.31512899,100040.0,100030.0,0.0009241]
[1733662607270,0.55471389,100040.0,100030.0,0.0009241]
[1733662607489,1.00116104,100040.0,100030.0,0.0009241]
[1733662607915,1.22512329,100040.0,100030.0,0.0009241]
[1733662608342,1.13562862,100040.0,100030.0,0.0009241]
[1733662609038,1.23544396,100040.0,100030.0,0.0009241]
[1733662609267,1.23344396,100040.0,100030.0,0.0009241]
[1733662609476,1.23344396,100040.0,100030.0,0.0019241]
[1733662609477,1.54234396,100040.0,100030.0,0.0019241]
[1733662609663,1.54249548,100040.0,100030.0,0.0019241]
[1733662609891,1.44268014,100040.0,100030.0,0.0019241]
[1733662610345,1.53230471,100040.0,100030.0,0.0019241]
[1733662610564,1.30824173,100040.0,100030.0,0.0019241]
[1733662610780,1.12899135,100040.0,100030.0,0.0019241]
[1733662611010,1.30824173,100040.0,100030.0,0.0019241]
[1733662611210,1.12899135,100040.0,100030.0,0.0019241]
[1733662611984,1.40805707,100040.0,100030.0,0.0019241]
[1733662612188,1.30824173,100040.0,100030.0,0.0019241]
[1733662612571,1.12899135,100040.0,100030.0,0.0019241]
[1733662613292,0.99455356,100040.0,100030.0,0.0019241]
[1733662613724,0.97155356,100040.0,100030.0,0.0019241]
[1733662615954,1.38109312,100040.0,100030.0,0.0019241]
[1733662616628,1.38109312,100040.0,99995.0,0.0479241]
[1733662616629,0.35997,100010.0,99995.0,0.0479241]
[1733662616837,0.35997,100010.0,99995.0,0.04798171]
[1733662617537,0.539963,100010.0,99995.0,0.04798171]
[1733662617757,0.35997,100010.0,99995.0,0.04798171]
[1733662617988,0.575959,100010.0,99995.0,0.04798171]
[1733662618207,0.0198849,99996.0,99995.0,0.00105761]
[1733662618415,0.360002,100000.0,99995.0,0.00105761]
[1733662619047,0.659902,100000.0,99995.0,0.00105761]
[1733662620133,0.0020759,99997.0,99995.0,0.00105761]
[1733662620345,0.10002951,99996.0,99995.0,5.761e-05]
[1733662620598,0.2999,99997.0,99995.0,5.761e-05]
[1733662620826,0.479907,99996.0,99995.0,5.761e-05]
[1733662621738,0.482907,99996.0,99995.0,5.761e-05]
[1733662621967,0.3029,99996.0,99995.0,5.761e-05]
[1733662625736,0.3029,99996.0,99995.0,0.14801122]
[1733662627223,0.2999,99996.0,99995.0,0.14801122]
[1733662631418,0.1815592,99996.0,99995.0,0.14801122]
[1733662634684,0.16524723,99996.0,99995.0,0.14801122]
[1733662634888,0.16524723,99996.0,99995.0,0.24671117]
[1733662634889,0.11037998,99996.0,99995.0,0.24671117]
[1733662635102,0.05551273,99996.0,99995.0,0.24571122]
[1733662635770,0.0017318,100000.0,99999.0,0.0979241]
[1733662635991,0.0017318,100000.0,99999.0,0.57734167]
[1733662635992,8e-07,100000.0,99999.0,0.57734167]
[1733662636234,0.01167218,100050.0,100030.0,0.0479241]
[1733662636476,0.4447416,100060.0,100040.0,0.179928]
[1733662636725,0.0072942,100050.0,100040.0,0.179928]
[1733662636962,0.6246446,100060.0,100040.0,0.179928]
[1733662637628,0.001,100050.0,100040.0,0.17998561]
[1733662637847,0.6246446,100060.0,100040.0,0.17998561]
[1733662638301,0.6306446,100060.0,100040.0,0.17998561]
[1733662639467,0.71051742,100060.0,100040.0,0.17998561]
[1733662640364,0.17991,100050.0,100040.0,5.761e-05]
[1733662641500,0.35963951,100050.0,100040.0,5.761e-05]
[1733662641725,0.36063951,100050.0,100040.0,5.761e-05]
[1733662642158,0.35963951,100050.0,100040.0,5.761e-05]
[1733662642885,0.3701094,100050.0,100040.0,5.761e-05]
[1733662643114,0.46992474,100050.0,100040.0,5.761e-05]
[1733662643338,0.4185094,100050.0,100040.0,5.761e-05]
[1733662643562,0.4225094,100050.0,100040.0,5.761e-05]
[1733662644252,0.4383824,100050.0,100040.0,5.761e-05]
[1733662644469,0.4473824,100050.0,100040.0,5.761e-05]
[1733662644952,0.4383824,100050.0,100040.0,5.761e-05]
[1733662645177,0.4423824,100050.0,100040.0,5.761e-05]
[1733662646271,0.47359528,100050.0,100040.0,5.761e-05]
[1733662646531,0.47532688,100050.0,100040.0,5.761e-05]
[1733662647857,0.444114,100050.0,100040.0,5.761e-05]
[1733662652732,0.29568449,100050.0,100040.0,5.761e-05]
[1733662653027,0.0057316,100050.0,100040.0,5.761e-05]
[1733662653237,0.0057316,100050.0,100040.0,0.17998561]
[1733662653238,0.0173904,100050.0,100040.0,0.17998561]
[1733662653878,0.0133904,100050.0,100040.0,0.17998561]
[1733662654102,0.0143904,100050.0,100040.0,0.17998561]
[1733662655851,0.1943004,100050.0,100040.0,0.17998561]
[1733662657217,0.1943004,100050.0,100040.0,5.761e-05]
[1733662657662,0.1943004,100050.0,100040.0,0.17998561]
[1733662657887,0.0143904,100050.0,100040.0,0.17998561]
[1733662658759,0.0143904,100050.0,100040.0,0.32893881]
[1733662658973,0.0027316,100050.0,100040.0,0.32793922]
[1733662660063,0.0017316,100050.0,100040.0,0.32793922]
[1733662664840,0.0017316,100050.0,100040.0,0.50093922]
[1733662665043,0.0017316,100050.0,100040.0,0.57603922]
[1733662669226,6e-07,100060.0,100050.0,0.5008341]
[1733662669439,6e-07,100060.0,100050.0,0.72916361]
[1733662669672,0.01893477,100090.0,100080.0,0.2277801]
[1733662669879,0.01386965,100100.0,100090.0,0.179838]
[1733662670299,0.001732,100100.0,100090.0,0.179838]
[1733662670952,0.00230702,100100.0,100090.0,0.179838]
[1733662672536,0.00430702,100100.0,100090.0,0.179838]
[1733662673216,0.01085965,100100.0,100090.0,0.179838]
[1733662675159,0.28416953,100110.0,100090.0,0.359665]
[1733662675359,0.01888334,100100.0,100090.0,0.44014002]
[1733662675562,0.20196953,100110.0,100090.0,0.54006902]
[1733662675794,0.20196953,100110.0,100090.0,0.36023102]
[1733662675795,0.01888421,100100.0,100090.0,0.36023102]
[1733662676006,0.20196953,100110.0,100090.0,0.54006002]
[1733662676156,0.0188842,100100.0,100090.0,0.36023102]
[1733662676363,0.38178153,100110.0,100090.0,0.54006802]
[1733662676618,0.38178153,100110.0,100090.0,0.36023102]
[1733662676619,0.01161978,100100.0,100090.0,0.36023102]
[1733662676819,0.38178153,100110.0,100090.0,0.54005802]
[1733662677040,0.01888214,100100.0,100090.0,0.36022902]
[1733662677251,0.38178153,100110.0,100090.0,0.54005502]
[1733662677480,0.38178153,100110.0,100090.0,0.36022802]
[1733662677481,0.01888141,100100.0,100090.0,0.36022802]
[1733662677695,0.37678153,100110.0,100090.0,0.54005402]
[1733662677909,0.01888141,100100.0,100090.0,0.36022702]
[1733662678126,0.02216553,100110.0,100090.0,0.36122702]
[1733662678345,0.01716553,100110.0,100100.0,0.17982]
[1733662679408,0.02216553,100110.0,100100.0,0.17982]
[1733662679590,0.01716553,100110.0,100100.0,0.17982]
[1733662680285,0.01889713,100110.0,100100.0,0.17982]
[1733662680516,0.0138468,100110.0,100100.0,0.17982]
[1733662680691,0.0168468,100110.0,100100.0,0.17982]
[1733662681136,0.0218468,100110.0,100100.0,0.18082]
[1733662682019,0.2016488,100110.0,100100.0,0.001]
[1733662682247,0.2836488,100110.0,100100.0,0.001]
[1733662683153,0.1038468,100110.0,100100.0,0.18082]
[1733662683852,0.0218468,100110.0,100100.0,0.2287441]
[1733662689282,0.0218468,100110.0,100100.0,0.47877361]
[1733662689738,0.0218468,100110.0,100100.0,0.55847361]
[1733662689979,0.0218468,100110.0,100100.0,0.37765361]
[1733662689980,0.0097316,100110.0,100100.0,0.37765361]
[1733662690406,0.0097316,100110.0,100100.0,0.40747361]
[1733662692131,0.0097316,100110.0,100100.0,0.32863851]
[1733662692349,0.0218468,100110.0,100100.0,0.32863851]
[1733662693451,0.0097316,100110.0,100100.0,0.32863851]
[1733662693664,0.02186923,100110.0,100100.0,0.32863851]
[1733662695328,0.0097316,100110.0,100100.0,0.55833851]
[1733662696533,0.02186923,100110.0,100100.0,0.55833851]
[1733662697919,0.02186923,100110.0,100100.0,0.47863851]
[1733662698380,0.0097316,100110.0,100100.0,0.47863851]
[1733662698632,0.01886727,100110.0,100100.0,0.47863851]
[1733662698848,0.01386727,100110.0,100100.0,0.47863851]
[1733662699075,0.01686727,100110.0,100100.0,0.47863851]
[1733662699287,0.01686727,100110.0,100100.0,0.48163851]
[1733662699509,0.01386727,100110.0,100100.0,0.48163851]
[1733662699726,0.0017316,100110.0,100100.0,0.48263851]
[1733662699964,0.01387125,100110.0,100100.0,0.48263851]
[1733662700204,0.02601091,100110.0,100100.0,0.48263851]
[1733662700454,0.01387125,100110.0,100100.0,0.48263851]
[1733662700660,0.02601107,100110.0,100100.0,0.48263851]
[1733662700871,0.01387125,100110.0,100100.0,0.48263851]
[1733662701083,0.02601109,100110.0,100100.0,0.48263851]
[1733662701972,0.02601118,100110.0,100100.0,0.48263851]
[1733662703120,0.02601145,100110.0,100100.0,0.48263851]
[1733662703366,0.02601145,100110.0,100100.0,0.052789]
[1733662703367,0.01387125,100110.0,100100.0,0.052789]
[1733662703579,0.19367325,100110.0,100100.0,0.052789]
[1733662703803,0.01387125,100110.0,100100.0,0.21012042]
[1733662704519,0.19367325,100110.0,100100.0,0.21012042]
[1733662704754,0.01387125,100110.0,100100.0,0.21012042]
[1733662706041,0.19367325,100110.0,100100.0,0.21012042]
[1733662708305,0.33518868,100110.0,100100.0,0.0048649]
[1733662709590,0.36518868,100110.0,100100.0,0.0048649]
[1733662709800,0.35304903,100110.0,100100.0,0.0048649]
[1733662710461,0.2931336,100110.0,100100.0,0.0048649]
[1733662711161,0.2931336,100110.0,100100.0,0.0008649]
[1733662711430,0.2961336,100110.0,100100.0,0.0008649]
[1733662711653,0.3011336,100110.0,100100.0,0.0018649]
[1733662711882,0.57272759,100110.0,100100.0,0.0018649]
[1733662712108,0.89622716,100110.0,100100.0,0.0018649]
[1733662712336,1.34775879,100110.0,100100.0,0.0018649]
[1733662712555,0.50732,100100.0,100090.0,0.00057502]
[1733662712757,0.179884,100070.0,100050.0,0.29434601]
[1733662712974,0.18717074,100060.0,100040.0,0.78770625]
[1733662713187,0.00727874,100050.0,100040.0,0.30537603]
[1733662713389,0.359798,100060.0,100040.0,0.27994051]
[1733662713609,0.621306,100060.0,100040.0,0.30537603]
[1733662714339,0.621306,100060.0,100040.0,0.30543364]
[1733662714592,0.441398,100060.0,100040.0,0.48536064]
[1733662714815,0.621302,100060.0,100040.0,0.48536064]
[1733662715020,0.621302,100060.0,100040.0,0.30543364]
[1733662715237,0.17991,100050.0,100040.0,0.30543364]
[1733662715433,0.17991,100050.0,100040.0,0.30643364]
[1733662716108,0.621301,100060.0,100040.0,0.30643364]
[1733662716321,0.621301,100060.0,100040.0,0.30543364]
[1733662716541,0.6834311,100060.0,100040.0,0.30543364]
[1733662716772,0.17991,100050.0,100040.0,0.02549313]
[1733662717008,0.17991,100050.0,100040.0,5.761e-05]
[1733662717638,0.18091,100050.0,100040.0,5.761e-05]
[1733662718060,0.18091,100050.0,100040.0,0.02549313]
[1733662718313,0.18091,100050.0,100040.0,0.02849313]
[1733662719479,0.001,100050.0,100040.0,0.50895018]
[1733662719701,0.001,100050.0,100040.0,0.58505064]
[1733662720351,0.001,100050.0,100040.0,0.60805064]
[1733662720559,0.001,100050.0,100040.0,0.65805064]
[1733662723078,0.001,100050.0,100040.0,0.66806803]
[1733662726316,0.001,100050.0,100040.0,0.66893373]
[1733662730731,0.001,100050.0,100040.0,0.71893373]
[1733662731201,0.27234496,100090.0,100070.0,0.20529552]
[1733662731405,0.27234496,100090.0,100070.0,0.38515552]
[1733662731616,0.260846,100090.0,100070.0,0.38515552]
[1733662731827,0.260846,100090.0,100070.0,0.56502952]
[1733662732489,0.27235261,100090.0,100070.0,0.56502952]
[1733662733648,0.00719502,100080.0,100070.0,0.38515552]
[1733662733867,0.46768953,100090.0,100050.0,0.329901]
[1733662734075,0.260892,100060.0,100050.0,0.02543552]
[1733662734716,0.27240613,100060.0,100050.0,0.02543552]
[1733662735185,0.49066421,100060.0,100040.0,0.30630534]
[1733662735402,0.45231119,100060.0,100040.0,0.48622534]
[1733662735638,0.440794,100060.0,100040.0,0.48622534]
[1733662735873,0.45231019,100060.0,100050.0,0.001]
[1733662736094,0.440794,100060.0,100050.0,0.001]
[1733662736555,0.45231218,100060.0,100050.0,0.001]
[1733662737048,0.45331218,100060.0,100050.0,0.007]
[1733662737281,0.45331218,100060.0,100040.0,0.48622434]
[1733662737282,0.45231218,100060.0,100040.0,0.66614334]
[1733662737519,0.00720112,100050.0,100040.0,0.48622334]
[1733662737744,0.260892,100060.0,100040.0,0.66714334]
[1733662737949,0.081,100060.0,100050.0,0.17991]
[1733662738157,0.260892,100060.0,100050.0,0.17991]
[1733662738400,0.260892,100060.0,100050.0,0.18091]
[1733662739092,0.260892,100060.0,100050.0,0.001]
[1733662740210,0.260892,100060.0,100050.0,0.004]
[1733662741414,0.32396328,100060.0,100050.0,0.004]
[1733662741875,0.260892,100060.0,100050.0,0.004]
[1733662743057,0.308092,100060.0,100050.0,0.004]
[1733662743732,0.40812151,100060.0,100050.0,0.004]
[1733662743953,0.55812151,100060.0,100050.0,0.004]
[1733662744838,0.58268599,100060.0,100050.0,0.004]
[1733662745046,0.68250133,100060.0,100050.0,0.004]
[1733662745483,0.73250133,100060.0,100050.0,0.004]
[1733662747668,0.70793685,100060.0,100050.0,0.004]
[1733662748573,0.65793685,100060.0,100050.0,0.004]
[1733662748822,0.65793685,100060.0,100050.0,0.003]
[1733662748823,0.74734922,100060.0,100050.0,0.003]
[1733662749039,0.52671,100050.0,100040.0,0.00092331]
[1733662749236,0.179982,100010.0,100000.0,0.02630132]
[1733662749479,0.179982,100010.0,100000.0,0.02635894]
[1733662751328,0.539931,100020.0,100000.0,0.02635894]
[1733662751750,0.539931,100020.0,100000.0,0.20635394]
[1733662751964,0.539931,100020.0,100000.0,0.20935394]
[1733662752352,0.001,100010.0,100000.0,0.21535394]
[1733662753225,0.179971,100020.0,100000.0,0.38934294]
[1733662753450,0.1871578,100020.0,100000.0,0.38934294]
[1733662753668,0.39631805,100020.0,100000.0,0.38634294]
[1733662753891,0.39631805,100020.0,100000.0,0.38734294]
[1733662753892,0.38913125,100020.0,100000.0,0.38734294]
[1733662754313,0.359943,100020.0,100000.0,0.38734294]
[1733662754548,0.69362843,100030.0,100010.0,0.20541752]
[1733662754752,0.00718306,100020.0,100010.0,0.38539952]
[1733662754980,0.179931,100040.0,100020.0,0.20539952]
[1733662754981,0.359874,100040.0,100020.0,0.20539952]
[1733662755193,0.359874,100040.0,100020.0,0.02543552]
[1733662755194,0.18712912,100030.0,100020.0,0.02543552]
[1733662755493,0.41460431,100030.0,100020.0,0.02543552]
[1733662756364,0.41460431,100030.0,100020.0,0.02643552]
[1733662756594,0.41460431,100030.0,100020.0,0.02543552]
[1733662756821,0.41660431,100030.0,100020.0,0.02543552]
[1733662757047,0.41660431,100030.0,100010.0,0.28080752]
[1733662757257,0.41660431,100030.0,100010.0,0.20540752]
[1733662757258,0.59556631,100030.0,100010.0,0.20540752]
[1733662757482,0.179964,100020.0,100010.0,0.20540752]
[1733662757705,0.59656331,100030.0,100010.0,0.20540752]
[1733662757936,0.41660431,100030.0,100010.0,0.56535252]
[1733662758148,0.41460431,100030.0,100010.0,0.56535252]
[1733662758365,0.41660431,100030.0,100010.0,0.56535252]